Cogmind - Beta 10.2 @@@ ROGUE MODE // 2021.01.30 @ 14:26:46 Player: derk Result: Destroyed by B-75 Beast with Magnetic Acceleration Cannon Performance ------------- Evolutions (5) 2500 Regions Visited (17) 3400 Robots Destroyed (149) 745 Value Destroyed (4855) 4855 Prototype IDs (39) 780 Alien Tech Used (0) 0 Bonus (2466) 2466 TOTAL SCORE: 14746 Bonus ------- High Alert Combat Kills 1459 Follower Combat Kills 1003 Entered Garrisons 400 Used RIF Installer 500 Aligned with FarCom 300 Friendly Fire -1196 Cogmind --------- Core Integrity 0/1000 Matter 226/300 Energy 2341/2380 System Corruption 12% Temperature Cool (0) Movement Treading (180) Ox1 Location -5/Extension Parts ------- > --- POWER (2) -------- Fission Core Micro Fission Core > --- PROPULSION (4) --- Medium Treads Improved Gravmag System Gyrokinetic Inverter Gyrokinetic Inverter > --- UTILITY (9) ------ Improved Heat Sink Improved Coolant Injector Superbattery Experimental Signal Interpreter Improved Targeting Computer Improved Targeting Computer Advanced Targeting Computer Advanced Shield Generator Advanced System Shield > --- WEAPON (2) ------- KE Penetrator Phasing Sabre > --- INVENTORY (4) ---- Humpback Improved Remote Datajack Peak State ------------ > --- POWER ------------ Fission Core Micro Fission Core > --- PROPULSION ------- Medium Treads Improved Gravmag System Gyrokinetic Inverter Gyrokinetic Inverter > --- UTILITY ---------- Improved Heat Sink Improved Coolant Injector Superbattery Experimental Signal Interpreter Improved Targeting Computer Improved Targeting Computer Advanced Targeting Computer Advanced Shield Generator Advanced System Shield > --- WEAPON ----------- KE Penetrator Phasing Sabre > --- INVENTORY -------- Humpback Improved Remote Datajack [Rating: 88] Favorites ----------- Power Heavy Ion Engine Engine Heavy Ion Engine Power Core Fission Core Reactor Cold Fusion Reactor Propulsion Light Treads Treads Light Treads Leg Carbon-fiber Leg Wheel Armored Wheel Hover Unit Combat Airjet Flight Unit Makeshift Flight Unit Utility High-capacity Storage Unit Device Cooling System Storage High-capacity Storage Unit Processor Advanced Targeting Computer Hackware Improved System Shield Protection Medium Armor Plating Weapon Precision Beam Rifle Energy Gun Precision Beam Rifle Energy Cannon Improved EM Pulse Cannon Ballistic Gun Assault Rifle Ballistic Cannon Advanced Assault Cannon Launcher Mini Grenade Launcher Special Weapon Remote Datajack Impact Weapon Powered Hammer Slashing Weapon Phasing Sabre Special Melee Weapon Datajack Build | -11 -10 -10 -10 -9 -8 -8 -8 -8 -6 -6 -6 -6 -6 -6 -5 -5 -5 ------- Run | Scr Mat Min Exi Min Mat Sto Gar Rec Fac Gar Fac Low Low Zio Pro Fac Ext Slots Evolved 10 | . . . . . 4 . . . 4 . . . . . . 2 . Power 1 | . . . . . . . . . 1 . . . . . . . . Propulsion 2 | . . . . . 1 . . . 1 . . . . . . . . Utility 7 | . . . . . 3 . . . 2 . . . . . . 2 . Weapon . | . . . . . . . . . . . . . . . . . . Parts Attached 201 | 6 10 1 . 8 19 25 10 3 45 1 20 7 7 1 4 13 21 Power 17 | 1 1 . . 1 . 1 1 . 7 . 1 1 . . . 1 2 Engine 7 | 1 1 . . . . 1 1 . 3 . . . . . . . . Core 8 | . . . . 1 . . . . 2 . 1 1 . . . 1 2 Reactor 2 | . . . . . . . . . 2 . . . . . . . . Propulsion 51 | 2 2 . . 2 8 7 2 . 9 . 5 . 2 . . 4 8 Treads 23 | 2 . . . 2 5 7 2 . 4 . . . . . . . 1 Leg 4 | . . . . . . . . . . . . . . . . 1 3 Wheel 5 | . 2 . . . 3 . . . . . . . . . . . . Hover 16 | . . . . . . . . . 4 . 5 . . . . 3 4 Flight 3 | . . . . . . . . . 1 . . . 2 . . . . Utility 60 | 1 4 . . . 3 5 2 1 14 1 6 5 4 1 . 5 8 Device 16 | . . . . . . . 1 . 4 . 3 . 1 1 . 1 5 Storage 9 | 1 4 . . . 1 . . . 1 . . . 1 . . . 1 Processor 11 | . . . . . . . . . 3 . 1 1 1 . . 3 2 Hackware 4 | . . . . . . . . . 1 . 1 . 1 . . 1 . Protection 20 | . . . . . 2 5 1 1 5 1 1 4 . . . . . Artifact . | . . . . . . . . . . . . . . . . . . Weapon 73 | 2 3 1 . 5 8 12 5 2 15 . 8 1 1 . 4 3 3 Energy Gun 23 | 1 1 1 . 2 4 5 3 1 2 . 3 . . . . . . Energy Cannon 9 | . . . . 1 2 3 . . 2 . 1 . . . . . . Ballistic Gun 15 | 1 1 . . 1 1 4 . . 4 . . 1 . . 1 . 1 Ballistic Cannon 1 | . . . . . 1 . . . . . . . . . . . . Launcher 13 | . . . . 1 . . 2 . 6 . 2 . . . 2 . . Special Weapon 2 | . . . . . . . . . . . . . 1 . 1 . . Impact Weapon 5 | . . . . . . . . . . . 2 . . . . 3 . Slashing Weapon 3 | . . . . . . . . . 1 . . . . . . . 2 Piercing Weapon . | . . . . . . . . . . . . . . . . . . Special Melee Weapon 2 | . 1 . . . . . . 1 . . . . . . . . . Unidentified Prototypes 15 | . . . . . 2 2 . . 5 . 1 1 . 1 . 3 . Parts Lost 57 | . 1 1 . . . 3 2 2 20 3 3 3 . . 7 11 1 Power 7 | . 1 . . . . . . . 2 1 1 . . . 1 1 . Propulsion 18 | . . . . . . . . . 8 . . 2 . . 4 4 . Utility 18 | . . . . . . . 1 1 6 1 1 1 . . 1 5 1 Weapon 14 | . . 1 . . . 3 1 1 4 1 1 . . . 1 1 . Highest Loss Streak 7 | . 1 1 . . . 1 2 2 7 2 2 2 . . 6 7 1 Average Slot Usage (%) 90 | . 99 100 100 100 99 98 100 99 84 67 88 89 87 100 91 60 68 Engine 5 | . 14 14 14 1 . 7 9 9 7 . 4 . . . . . . Core 4 | . . . . 12 9 1 . . 1 6 6 7 13 13 12 1 7 Treads 12 | . 19 . . 19 17 26 27 27 11 . . . . . . . . Wheel 3 | . 8 28 28 8 9 . . . . . . . . . . . . Hover 5 | . . . . . . . . . 7 13 18 21 13 13 12 7 10 Device 5 | . . . . . . . 8 9 8 6 9 6 9 11 9 8 12 Storage 17 | . 27 28 28 28 27 27 27 27 12 6 6 6 6 6 5 . . Processor 5 | . . . . . . . . . 7 13 13 13 8 6 6 18 12 Hackware 3 | . . . . . . . . . . 6 8 11 6 13 13 10 5 Protection 7 | . . . . . 17 17 9 8 10 6 5 7 13 7 5 . . Energy Gun 5 | . 14 14 14 11 2 4 15 8 2 . 3 . . . . . . Energy Cannon 2 | . . . . 10 7 6 . . 1 . 2 4 . . . . . Ballistic Gun 4 | . 12 14 14 4 6 7 . . 1 . . 1 6 6 3 . 3 Launcher 1 | . . . . 1 . . 2 1 1 5 2 6 2 . 2 . . Naked Turns . | . . . . . . . . . . . . . . . . . . Heaviest Build 132 | 11 73 73 73 80 126 129 120 112 132 35 41 45 43 42 43 16 36 Greatest Support 80 | 40 40 24 24 40 60 60 60 60 80 35 79 79 44 44 44 60 60 Greatest Overweight (x) 6 | . 3 3 3 3 5 2 1 1 6 . . 1 5 . . . 1 Average Overweight (x) . | . . 3 3 1 3 1 1 1 . . . . . . . . . Largest Inventory Capacity 28 | 6 20 20 20 20 28 28 28 28 28 4 4 4 4 4 4 4 4 Average Capacity 16 | 5 16 20 20 20 28 28 28 28 18 4 4 4 4 4 4 4 4 Most Carried 28 | 6 20 20 20 20 28 28 28 28 27 3 4 4 4 4 4 4 4 Average Carried 15 | 3 13 19 19 19 21 27 27 26 16 3 3 3 3 4 3 3 3 Final Capacity 28 | 6 20 20 20 20 28 28 28 28 4 4 4 4 4 4 4 4 4 Final Carried 28 | 6 19 20 20 20 28 28 26 28 4 3 4 4 4 4 4 4 3 Class Distribution -------------------- 37% | Hauler-Mutant 26% | Mutant 14% | Hacker-Mutant 14% | Commander-Mutant 6% | Scavenger-Mutant Dominant Class ---------------- Mutant | -10/Materials Hauler-Mutant | -10/Mines Hauler-Mutant | -10/Exiles Hauler-Mutant | -9/Mines Hauler-Mutant | -8/Materials Hauler-Mutant | -8/Storage Hauler-Mutant | -8/Garrison Commander-Mutant | -8/Recycling Mutant | -6/Factory Mutant | -6/Garrison Mutant | -6/Factory Hacker-Mutant | -6/Lower Caves Mutant | -6/Lower Caves Hacker-Mutant | -6/Zion Hacker-Mutant | -5/Proximity Caves Hacker-Mutant | -5/Factory Scavenger-Mutant | -5/Extension Resources | -11 -10 -10 -10 -9 -8 -8 -8 -8 -6 -6 -6 -6 -6 -6 -5 -5 -5 ----------- Run | Scr Mat Min Exi Min Mat Sto Gar Rec Fac Gar Fac Low Low Zio Pro Fac Ext Matter Collected 3619 | 266 248 34 . 140 275 337 140 49 832 . 282 212 243 . 142 162 257 Remotely . | . . . . . . . . . . . . . . . . . . Salvage Created 5178 | 77 629 185 . 185 314 848 329 122 1122 75 182 294 180 . 185 111 340 Parts 252 | . 47 9 . 5 20 51 14 12 55 . 4 10 7 . 3 4 11 Haulers Intercepted 9 | . 2 . . . 2 3 . . . . . . . . . . 2 Recyclers Shooed 3 | . . . . . . 1 . . 2 . . . . . . . . Parts Field Recycled 26 | . . . . . . . . . . . 26 . . . . . . Retrieved Matter 293 | . . . . . . . . . . . 293 . . . . . . Parts Self-Destructed 15 | . . . . . . . . . . . . 7 6 . 2 . . Prevented . | . . . . . . . . . . . . . . . . . . Kills | -11 -10 -10 -10 -9 -8 -8 -8 -8 -6 -6 -6 -6 -6 -6 -5 -5 -5 ------- Run | Scr Mat Min Exi Min Mat Sto Gar Rec Fac Gar Fac Low Low Zio Pro Fac Ext Combat Hostiles Destroyed 122 | . 13 2 . 14 4 11 13 7 30 4 3 7 3 . 9 2 . Melee 3 | . . . . . . . . . 1 . 1 . . . . 1 . Guns 41 | . 10 2 . 5 1 2 6 3 7 . . . 2 . 3 . . Cannons 15 | . . . . 1 3 6 . . . . 2 3 . . . . . AOE 59 | . 3 . . 8 . . 7 4 22 4 . 4 1 . 6 . . Classes Destroyed 16 | 1 7 . . 2 2 . 1 1 2 . . . . . . . . Worker 9 | . 1 . . . . 2 . . 5 . . . . . . . 1 Builder 5 | . 1 . . . . . . . 4 . . . . . . . . Hauler 9 | . 2 . . . 2 3 . . . . . . . . . . 2 Recycler 5 | 1 1 1 . . . 1 . . . . . . . . . . 1 Operator 1 | . 1 . . . . . . . . . . . . . . . . Drone 7 | . . . . . . . . 7 . . . . . . . . . Watcher 4 | . 3 . . . . . . . 1 . . . . . . . . Swarmer 33 | . 9 . . 3 . 4 7 . 6 . . . . . 4 . . Grunt 45 | . 4 2 . 2 1 3 2 . 18 4 1 3 1 . 4 . . Brawler 6 | . . . . . . . . . 2 . . 2 1 . 1 . . Duelist 3 | . . . . . . . 1 . . . 1 1 . . . . . Sentry 9 | . . . . . 1 5 2 . . . . 1 . . . . . Demolisher 1 | . . . . 1 . . . . . . . . . . . . . Hunter 6 | . . . . . 2 . 1 . 2 . . . . . . 1 . Programmer 5 | . . . . . . . . . 2 . 1 . 1 . . 1 . Assembled 8 | . . . . 8 . . . . . . . . . . . . . Best Kill Streak 15 | 1 9 2 . 8 2 5 7 2 15 3 1 7 1 . 4 1 1 Combat Bots Only 11 | . 6 2 . 8 2 5 7 2 11 3 1 7 1 . 4 1 . Max Kills in Single Turn 4 | 1 3 1 . 3 1 1 2 1 4 2 1 2 1 . 2 1 1 Gunslinging . | . . . . . . . . . . . . . . . . . . Exploded 4 | . 3 . . 3 . . 2 1 4 2 . 2 1 . 2 . . Melee 1 | . . . . . . . . . 1 . 1 . . . . 1 . Uniques/NPCs Destroyed 1 | . . . . . . 1 . . . . . . . . . . . 01-MTF (-8/Storage) Combat | -11 -10 -10 -10 -9 -8 -8 -8 -8 -6 -6 -6 -6 -6 -6 -5 -5 -5 -------- Run | Scr Mat Min Exi Min Mat Sto Gar Rec Fac Gar Fac Low Low Zio Pro Fac Ext Damage Taken 10249 | . 249 172 . 371 224 607 892 40 3317 378 431 299 314 58 913 1766 218 Core 1950 | . 62 12 . 134 . . 69 . 392 46 18 . 42 . 161 945 69 Absorbed by Shields 297 | . . . . . . . . . 113 . . . 105 20 8 . 51 Core Remaining (%) 56 | 100 . . . 16 . . . 87 . . . . . . 22 . . Volleys Fired 392 | 2 51 9 . 19 23 38 36 16 74 17 25 13 28 5 24 . 12 Largest 2 | 2 2 2 . 2 2 2 2 2 2 1 1 1 1 1 1 . 1 Hottest 124 | 60 60 60 . 124 124 124 122 91 124 30 90 90 39 35 39 . 33 Shots Fired 555 | 4 102 18 . 27 31 67 63 20 99 17 25 13 28 5 24 . 12 Gun 385 | 4 102 18 . 13 8 41 58 16 61 . 6 . 27 5 14 . 12 Cannon 90 | . . . . 9 23 26 . . 10 . 14 8 . . . . . Launcher 80 | . . . . 5 . . 5 4 28 17 5 5 1 . 10 . . Special . | . . . . . . . . . . . . . . . . . . Kinetic 204 | 2 51 9 . 1 15 23 . . 45 . . . 27 5 14 . 12 Thermal 130 | . . . . . . 12 58 16 16 . 20 8 . . . . . Explosive 75 | . . . . 5 . . 5 4 28 17 . 5 1 . 10 . . Electromagnetic 146 | 2 51 9 . 21 16 32 . . 10 . 5 . . . . . . Robot Hit Streak 32 | 4 9 7 . 8 8 14 32 5 17 4 9 9 10 6 7 . 8 Robot Miss Streak 9 | . 6 2 . 3 3 4 1 9 4 1 2 2 3 . 4 . 1 Penetration Max 2 | . . . . . . 1 . . 1 . . . 2 . 2 . 1 Secondary Targets 5 | . 2 1 . . . . 1 . 1 . . . . . . . . Max Gunslinging Chain 1 | . 1 1 . . . . 1 . 1 . . . . . . . . Shots Hit Robots 414 | 4 62 11 . 15 18 47 51 29 69 5 18 10 20 5 13 21 16 Core Hits 313 | 2 27 5 . 20 11 23 21 12 113 11 5 19 7 1 27 3 6 Critical Hits 21 | . . . . 1 . 1 . . 6 . . . 7 1 4 . 1 Critical Kills 6 | . . . . . . . . . 2 . . . 2 . 2 . . Critical Parts Destroyed 11 | . . . . . . . . . 3 . . . 5 1 1 . 1 Melee Attacks 76 | . . . . . . . . 20 1 . 11 . . . . 39 5 Impact 50 | . . . . . . . . . . . 11 . . . . 39 . Slashing 6 | . . . . . . . . . 1 . . . . . . . 5 Piercing . | . . . . . . . . . . . . . . . . . . Sneak Attacks 22 | . . . . . . . . 19 . . . . . . . . 3 Combat Hostiles . | . . . . . . . . . . . . . . . . . . Follow-up Attacks 2 | . . . . . . . . . . . . . . . . 2 . Damage Inflicted 16004 | 50 975 145 . 932 435 1199 1483 407 4601 767 650 1050 247 41 1728 602 692 Guns 4722 | 50 805 145 . 127 113 652 895 158 1097 . 64 . 200 41 121 . 254 Cannons 1752 | . . . . 161 322 533 . . 181 . 290 265 . . . . . Explosions 8249 | . 170 . . 644 . . 588 249 3275 767 117 785 47 . 1607 . . Melee 1267 | . . . . . . . . . 48 . 179 . . . . 602 438 Ramming 14 | . . . . . . 14 . . . . . . . . . . . Kinetic 2342 | 23 259 53 . 13 149 388 . . 841 . . . 200 41 121 . 254 Thermal 2970 | . 170 . . 110 . 158 895 158 860 . 354 265 . . . . . Explosive 7248 | . . . . 534 . . 588 249 2671 767 . 785 47 . 1607 . . Electromagnetic 2163 | 27 546 92 . 275 286 639 . . 181 . 117 . . . . . . Impact 781 | . . . . . . . . . . . 179 . . . . 602 . Slashing 486 | . . . . . . . . . 48 . . . . . . . 438 Piercing . | . . . . . . . . . . . . . . . . . . Highest Corruption 12 | . . . . . . . . . 2 1 4 3 . . . 12 12 Average Corruption 5 | . . . . . . . . . 1 1 3 1 . . . 9 12 Corruption Purged 6 | . . . . . . . . . 1 1 1 3 . . . . . Effects 55 | . . . . . . . . . 3 . 9 . . . . 9 34 Message Errors 9 | . . . . . . . . . 1 . 2 . . . . 2 4 Matter Fused 10 | . . . . . . . . . . . 3 . . . . 1 6 Heat Flow Errors 5 | . . . . . . . . . 1 . . . . . . . 4 Energy Discharges 6 | . . . . . . . . . . . . . . . . . 6 Parts Rejected 1 | . . . . . . . . . . . . . . . . 1 . Data Loss (minor) 6 | . . . . . . . . . 1 . 3 . . . . . 2 Data Loss (major) 1 | . . . . . . . . . . . . . . . . . 1 Misdirections 10 | . . . . . . . . . . . . . . . . 2 8 Targeting Errors 7 | . . . . . . . . . . . 1 . . . . 3 3 Overload Shots . | . . . . . . . . . . . . . . . . . . Overflow Damage 346 | . . . . 28 . 8 62 18 114 8 1 2 . . 55 50 . Projectiles 30 | . . . . 22 . 8 . . . . . . . . . . . Explosions 266 | . . . . 6 . . 62 18 114 8 1 2 . . 55 . . Melee 50 | . . . . . . . . . . . . . . . . 50 . Knockbacks 3 | . . . . . 2 . . . . . . . . . . 1 . Impact 1 | . . . . . . . . . . . . . . . . 1 . Kinetic 2 | . . . . . 2 . . . . . . . . . . . . Secondary . | . . . . . . . . . . . . . . . . . . Self-Inflicted Damage 679 | . 40 . . 37 . . 75 40 264 95 . 51 16 . 61 . . Shots 19 | . 1 . . 2 . . 3 1 5 4 . 1 1 . 1 . . Rammed . | . . . . . . . . . . . . . . . . . . Targets Rammed 1 | . . . . . . 1 . . . . . . . . . . . Kicked . | . . . . . . . . . . . . . . . . . . Crushed 1 | . . . . . . 1 . . . . . . . . . . . Highest Temperature 350 | . 30 79 . 188 138 308 27 . 350 71 295 180 142 10 105 . 195 Average Temperature 66 | . 16 51 . 58 51 88 8 . 104 37 85 75 78 5 33 . 76 Received Heat Transfer 2357 | . 30 99 . 39 63 180 189 . 1040 135 102 63 126 . 273 . 18 Effects 1 | . . . . . . 1 . . . . . . . . . . . Energy Bleed 1 | . . . . . . 1 . . . . . . . . . . . Siege Activations . | . . . . . . . . . . . . . . . . . . Robots Corrupted 3 | . . . . . . 3 . . . . . . . . . . . Combat Hostiles 3 | . . . . . . 3 . . . . . . . . . . . Parts Fried 7 | . 2 . . . 1 4 . . . . . . . . . . . Impact Corruptions 5 | . . . . . . . . . . . . . . . . 5 . Robots Melted . | . . . . . . . . . . . . . . . . . . Combat Hostiles . | . . . . . . . . . . . . . . . . . . Parts Melted 11 | . 1 . . . . . 6 . 1 . 3 . . . . . . Heat Transferred 4652 | . 200 . . 150 . 444 1809 333 755 . 561 400 . . . . . Parts Sabotaged . | . . . . . . . . . . . . . . . . . . Parts Stolen . | . . . . . . . . . . . . . . . . . . Parts Stripped . | . . . . . . . . . . . . . . . . . . Power Chain Reactions 3 | . 1 . . 1 . . . . 1 . . . . . . . . Missiles Intercepted . | . . . . . . . . . . . . . . . . . . Alert | -11 -10 -10 -10 -9 -8 -8 -8 -8 -6 -6 -6 -6 -6 -6 -5 -5 -5 ------- Run | Scr Mat Min Exi Min Mat Sto Gar Rec Fac Gar Fac Low Low Zio Pro Fac Ext Peak Influence 1701 | 5 301 162 . 140 169 756 954 604 1701 1271 729 . . . . 156 232 Initial 1154 | . 3 117 . . 17 39 491 429 1097 1154 661 . . . . 88 . Average 469 | 1 101 149 . 38 58 314 661 504 1335 1241 665 . . . . 89 84 Maximum Alert Level 5 | . 1 . . . . 3 3 2 5 4 3 . . . . . 1 Low Security (%) 47 | 100 90 100 . 100 100 42 . . . . . . . . . 100 89 Level 1 7 | . 9 . . . . 29 . . . . . . . . . . 10 Level 2 20 | . . . . . . 14 65 100 . . 79 . . . . . . Level 3 8 | . . . . . . 13 34 . 12 . 20 . . . . . . Level 4 14 | . . . . . . . . . 69 100 . . . . . . . Level 5 2 | . . . . . . . . . 17 . . . . . . . . High Security . | . . . . . . . . . . . . . . . . . . Max Security . | . . . . . . . . . . . . . . . . . . Squads Dispatched 32 | . 2 . . . 2 6 . . 13 . 4 . . . 1 2 2 Investigation 7 | . 1 . . . 1 1 . . 3 . . . . . . 1 . Extermination 5 | . . . . . . . . . 2 . 2 . . . . 1 . Reinforcement 11 | . 1 . . . 1 2 . . 3 . 2 . . . . . 2 Assault 6 | . . . . . . . . . 5 . . . . . 1 . . Garrison 3 | . . . . . . 3 . . . . . . . . . . . Intercept . | . . . . . . . . . . . . . . . . . . Construction Impeded 3 | . . . . . . . . . 1 . 1 . . . . . 1 Haulers Reinforced 1 | . . . . . . . . . 1 . . . . . . . . Stealth | -11 -10 -10 -10 -9 -8 -8 -8 -8 -6 -6 -6 -6 -6 -6 -5 -5 -5 --------- Run | Scr Mat Min Exi Min Mat Sto Gar Rec Fac Gar Fac Low Low Zio Pro Fac Ext Distress Signals 10 | . 1 . . 1 . 3 . . 1 . . . . . . 2 2 Communications Jammed 1 | . . . . . . . . . . . 1 . . . . . . Distress Signals 1 | . . . . . . . . . . . 1 . . . . . . Times Spotted 262 | . 22 2 . 15 6 37 15 10 75 5 18 7 3 4 20 11 12 Peak Tracking Total 15 | . 6 2 . 8 3 5 5 2 15 3 8 7 3 4 9 6 3 Tactical Retreats 19 | . . . . 2 2 2 1 . 5 . 3 . 1 1 . 1 1 Traps | -11 -10 -10 -10 -9 -8 -8 -8 -8 -6 -6 -6 -6 -6 -6 -5 -5 -5 ------- Run | Scr Mat Min Exi Min Mat Sto Gar Rec Fac Gar Fac Low Low Zio Pro Fac Ext Traps Triggered 15 | . . . . 1 2 3 6 . 1 . 1 . . . . . 1 Indirectly . | . . . . . . . . . . . . . . . . . . Trap Hack Attempts 18 | . 18 . . . . . . . . . . . . . . . . Triggered . | . . . . . . . . . . . . . . . . . . Disarmed . | . . . . . . . . . . . . . . . . . . Reprogrammed 3 | . 3 . . . . . . . . . . . . . . . . Reused . | . . . . . . . . . . . . . . . . . . Traps Extracted . | . . . . . . . . . . . . . . . . . . Installed . | . . . . . . . . . . . . . . . . . . Triggered . | . . . . . . . . . . . . . . . . . . Machines | -11 -10 -10 -10 -9 -8 -8 -8 -8 -6 -6 -6 -6 -6 -6 -5 -5 -5 ---------- Run | Scr Mat Min Exi Min Mat Sto Gar Rec Fac Gar Fac Low Low Zio Pro Fac Ext Machines Disabled 22 | . . . . . 2 5 1 2 10 1 . 1 . . . . . Max in Single Turn 5 | . . . . . 1 1 1 1 5 1 . 1 . . . . . Garrison Relay 1 | . . . . . . . 1 . . . . . . . . . . Machines Sabotaged . | . . . . . . . . . . . . . . . . . . Garrisons Compromised . | . . . . . . . . . . . . . . . . . . Overloaded Fab Kills . | . . . . . . . . . . . . . . . . . . Fab Network Shutdowns . | . . . . . . . . . . . . . . . . . . Hacking | -11 -10 -10 -10 -9 -8 -8 -8 -8 -6 -6 -6 -6 -6 -6 -5 -5 -5 --------- Run | Scr Mat Min Exi Min Mat Sto Gar Rec Fac Gar Fac Low Low Zio Pro Fac Ext Machines Accessed 48 | . 4 . 2 1 3 10 . 3 5 . 8 . 1 . . 4 7 Terminals 33 | . 4 . . . 2 7 . 3 4 . 3 . . . . 3 7 Fabricators 3 | . . . . . . . . . . . 2 . . . . 1 . Repair Stations 4 | . . . . . . 2 . . . . 2 . . . . . . Recycling Units . | . . . . . . . . . . . . . . . . . . Scanalyzers 1 | . . . . . 1 . . . . . . . . . . . . Garrison Access 3 | . . . . . . 1 . . 1 . 1 . . . . . . Total Hacks 157 | . 17 . 2 1 10 32 . 11 15 . 31 . 1 . . 15 22 Successful 82 | . 9 . 2 1 6 23 . 2 4 . 17 . 1 . . 7 10 Failed 75 | . 8 . . . 4 9 . 9 11 . 14 . . . . 8 12 Catastrophic 14 | . . . . . . 1 . 2 4 . 3 . . . . 2 2 Database Lockouts . | . . . . . . . . . . . . . . . . . . Manual 68 | . 6 . 1 . 1 8 . 11 11 . 14 . . . . 6 10 Terminals 114 | . 17 . . . 5 19 . 11 14 . 16 . . . . 10 22 Fabricators 13 | . . . . . . . . . . . 8 . . . . 5 . Repair Stations 16 | . . . . . . 12 . . . . 4 . . . . . . Recycling Units . | . . . . . . . . . . . . . . . . . . Scanalyzers 5 | . . . . . 5 . . . . . . . . . . . . Garrison Access 5 | . . . . . . 1 . . 1 . 3 . . . . . . Terminal Hacks 45 | . 8 . 2 1 2 10 . 1 3 . 5 . 1 . . 4 8 Record 1 | . . . 1 . . . . . . . . . . . . . . Part Schematic 1 | . 1 . . . . . . . . . . . . . . . . Robot Analysis 1 | . . . . . . 1 . . . . . . . . . . . Prototype ID Bank 1 | . . . . . . 1 . . . . . . . . . . . Open Door 8 | . . . . 1 . 2 . . . . . . 1 . . . 4 Level Access Points 1 | . . . . . . 1 . . . . . . . . . . . Branch Access Points 4 | . 1 . . . 1 . . . . . 1 . . . . . 1 Emergency Access Points 2 | . . . . . . . . . 1 . 1 . . . . . . Terminal Index 3 | . 1 . . . . . . . . . 1 . . . . 1 . Fabricator Index 1 | . . . . . . . . . . . 1 . . . . . . Unreport Threat 3 | . 1 . . . . . . . . . . . . . . 1 1 Locate Traps 3 | . 2 . . . . . . . 1 . . . . . . . . Disarm Traps 1 | . . . . . . . . . . . . . . . . . 1 Patrol Status 1 | . 1 . . . . . . . . . . . . . . . . Recall Investigation 1 | . . . . . . . . . . . . . . . . 1 . Hauler Manifests 1 | . . . . . . 1 . . . . . . . . . . . Registered Components 2 | . . . . . . 1 . . . . . . . . . 1 . Zone Layout 9 | . 1 . . . 1 3 . 1 1 . 1 . . . . . 1 EX-Prototype ID Bank 1 | . . . 1 . . . . . . . . . . . . . . Fabricator Hacks 5 | . . . . . . . . . . . 3 . . . . 2 . Load Schematic 3 | . . . . . . . . . . . 2 . . . . 1 . Build 2 | . . . . . . . . . . . 1 . . . . 1 . Repair Station Hacks 12 | . . . . . . 10 . . . . 2 . . . . . . Scan Component 6 | . . . . . . 5 . . . . 1 . . . . . . Repair 5 | . . . . . . 5 . . . . . . . . . . . Refit 1 | . . . . . . . . . . . 1 . . . . . . Recycling Unit Hacks . | . . . . . . . . . . . . . . . . . . Scanalyzer 4 | . . . . . 4 . . . . . . . . . . . . Insert Component 2 | . . . . . 2 . . . . . . . . . . . . Analyze 2 | . . . . . 2 . . . . . . . . . . . . Garrison Access Hacks 2 | . . . . . . 1 . . 1 . . . . . . . . Unlock Access 2 | . . . . . . 1 . . 1 . . . . . . . . Unauthorized Hacks 14 | . 1 . . . . 2 . 1 . . 7 . . . . 1 2 Terminals 9 | . 1 . . . . 2 . 1 . . 3 . . . . . 2 Track 3 | . 1 . . . . 1 . . . . . . . . . . 1 Assimilate 1 | . . . . . . . . . . . 1 . . . . . . Botnet 5 | . . . . . . 1 . 1 . . 2 . . . . . 1 Fabricators 2 | . . . . . . . . . . . 1 . . . . 1 . Siphon 2 | . . . . . . . . . . . 1 . . . . 1 . Repair Stations . | . . . . . . . . . . . . . . . . . . Recycling Units . | . . . . . . . . . . . . . . . . . . Scanalyzers . | . . . . . . . . . . . . . . . . . . Garrison Access 3 | . . . . . . . . . . . 3 . . . . . . Redirect 1 | . . . . . . . . . . . 1 . . . . . . Intercept 1 | . . . . . . . . . . . 1 . . . . . . Watchers 1 | . . . . . . . . . . . 1 . . . . . . Data Cores Recovered . | . . . . . . . . . . . . . . . . . . Used . | . . . . . . . . . . . . . . . . . . Hacking Detections 37 | . 4 . . . 3 8 . 3 5 . 6 . . . . 4 4 Full Trace Events 9 | . 1 . . . . 1 . 3 3 . . . . . . 1 . Feedback Events . | . . . . . . . . . . . . . . . . . . Feedback Blocked . | . . . . . . . . . . . . . . . . . . Robot Schematics Acquired . | . . . . . . . . . . . . . . . . . . Robots Built . | . . . . . . . . . . . . . . . . . . Matter . | . . . . . . . . . . . . . . . . . . Time . | . . . . . . . . . . . . . . . . . . Total Robot Build Rating . | . . . . . . . . . . . . . . . . . . Part Schematics Acquired 3 | . 1 . . . 2 . . . . . . . . . . . . Parts Built 4 | . . . . . . . . . . . 2 . . . . 2 . Matter 284 | . . . . . . . . . . . 142 . . . . 142 . Time 94 | . . . . . . . . . . . 47 . . . . 47 . Total Part Build Rating 20 | . . . . . . . . . . . 10 . . . . 10 . Parts Repaired 5 | . . . . . . 5 . . . . . . . . . . . Time 184 | . . . . . . 184 . . . . . . . . . . . Parts Recycled . | . . . . . . . . . . . . . . . . . . Recycled Matter . | . . . . . . . . . . . . . . . . . . Retrieved Matter . | . . . . . . . . . . . . . . . . . . Retrieved Components . | . . . . . . . . . . . . . . . . . . Parts Scanalyzed 2 | . . . . . 2 . . . . . . . . . . . . Part Schematics Acquired 2 | . . . . . 2 . . . . . . . . . . . . Parts Damaged . | . . . . . . . . . . . . . . . . . . Bothacking | -11 -10 -10 -10 -9 -8 -8 -8 -8 -6 -6 -6 -6 -6 -6 -5 -5 -5 ------------ Run | Scr Mat Min Exi Min Mat Sto Gar Rec Fac Gar Fac Low Low Zio Pro Fac Ext Used RIF Installer 1 | . . . . . . . 1 . . . . . . . . . . Robots Hacked 2 | . . . . . . . . 2 . . . . . . . . . Non-combat 2 | . . . . . . . . 2 . . . . . . . . . Combat . | . . . . . . . . . . . . . . . . . . Robot Hacks Applied 3 | . . . . . . . . 3 . . . . . . . . . parse_system 2 | . . . . . . . . 2 . . . . . . . . . find_recycling 1 | . . . . . . . . 1 . . . . . . . . . Relay Couplers Released 4 | . . . . . . . 4 . . . . . . . . . . Machine Destruction 4 | . . . . . . . 4 . . . . . . . . . . Robots Rewired 19 | . . . . . . . . 10 . . . 2 . . . . 7 Allies Hacked 1 | . . . . . . . . . 1 . . . . . . . . Hacks Repelled . | . . . . . . . . . . . . . . . . . . Allies | -11 -10 -10 -10 -9 -8 -8 -8 -8 -6 -6 -6 -6 -6 -6 -5 -5 -5 -------- Run | Scr Mat Min Exi Min Mat Sto Gar Rec Fac Gar Fac Low Low Zio Pro Fac Ext Total Allies 36 | . . . . . . 11 . 10 . . 1 2 . . . . 12 Largest Group 11 | . . . . . . 10 1 10 10 . 1 2 2 . . . 11 Highest-Rated Group 444 | . . . . . . 256 16 146 146 . 10 52 52 . . . 444 Highest-Rated Ally 156 | . . . . . . 99 16 24 24 . 10 32 32 . . . 156 Total Orders 5 | . . . . . . 4 1 . . . . . . . . . . STAY 3 | . . . . . . 2 1 . . . . . . . . . . FOLLOW 2 | . . . . . . 2 . . . . . . . . . . . Ally Attacks 254 | . . . . . . 92 . 45 24 . . . 2 . . . 91 Total Damage 5132 | . . . . . . 2160 . 529 386 . . . 84 . . . 1973 Kills 53 | . . . . . . 23 . 12 5 . . . . . . . 13 Allies Corrupted . | . . . . . . . . . . . . . . . . . . Allies Melted . | . . . . . . . . . . . . . . . . . . Intel | -11 -10 -10 -10 -9 -8 -8 -8 -8 -6 -6 -6 -6 -6 -6 -5 -5 -5 ------- Run | Scr Mat Min Exi Min Mat Sto Gar Rec Fac Gar Fac Low Low Zio Pro Fac Ext Robot Analysis Total 1 | . . . . . . 1 . . . . . . . . . . . Derelict Logs Recovered 5 | . . . . . . . . . . . . 1 2 1 1 . . Drone Launches . | . . . . . . . . . . . . . . . . . . Drone Recoveries . | . . . . . . . . . . . . . . . . . . Exploration | -11 -10 -10 -10 -9 -8 -8 -8 -8 -6 -6 -6 -6 -6 -6 -5 -5 -5 ------------- Run | Scr Mat Min Exi Min Mat Sto Gar Rec Fac Gar Fac Low Low Zio Pro Fac Ext Turns Passed 10981 | 84 783 417 439 555 649 1765 580 563 1309 378 778 302 640 205 318 550 666 Spaces Moved 7987 | 43 402 322 364 266 283 679 241 263 1003 272 1050 370 717 254 347 574 537 Core 473 | 4 . . . . . . . . . . . . . . 23 258 188 Treads 2032 | 39 244 . . 171 133 679 241 263 262 . . . . . . . . Legs 1 | . . . . . . . . . . . . . . . . . 1 Wheels 1089 | . 158 322 364 95 150 . . . . . . . . . . . . Hover 4009 | . . . . . . . . . 360 272 1050 370 715 254 324 316 348 Flight 383 | . . . . . . . . . 381 . . . 2 . . . . Fastest Speed 40 | 50 100 120 120 120 130 180 180 180 40 61 55 60 76 76 50 50 50 Average Speed 104 | 149 139 120 120 158 168 194 180 180 100 61 57 63 77 76 74 67 73 Slowest Speed 490 | 160 160 120 120 180 260 200 180 180 290 61 72 146 490 76 76 86 126 Overloaded Moves . | . . . . . . . . . . . . . . . . . . Propulsion Burnouts . | . . . . . . . . . . . . . . . . . . Robots Hopped 4 | . . . . . . . . . 4 . . . . . . . . Cave-ins Triggered . | . . . . . . . . . . . . . . . . . . Exploration Rate (%) 47 | 4 69 67 77 44 24 87 41 74 28 41 23 59 90 15 57 13 43 Regions Visited 17 Branch Regions 10 Pre-discovered Areas 3 | . . . 1 . . . . . . . . . 2 . . . . Known Exits Taken 6 | . 1 . . . 1 1 . . 1 . 1 . . . . 1 . Unknown Exits Taken 9 | 1 . 1 1 1 . . . 1 . . . 1 1 1 1 . . Scrap Searched 6 | . . 1 . . . . . . . . . 1 3 . 1 . . Spaces Dug 101 | . . . . . 3 . 21 . 16 18 7 . 21 . 8 7 . Terrain Destroyed 528 | . 5 . . 38 5 1 33 28 175 55 8 44 21 . 108 7 . Melee 10 | . . . . . . . . . . . 3 . . . . 7 . Projectile 17 | . . . . . 5 1 . . 6 . 5 . . . . . . AOE 501 | . 5 . . 38 . . 33 28 169 55 . 44 21 . 108 . . Terrain Rammed . | . . . . . . . . . . . . . . . . . . Walls Destroyed . | . . . . . . . . . . . . . . . . . . Machines Disabled . | . . . . . . . . . . . . . . . . . . Actions | -11 -10 -10 -10 -9 -8 -8 -8 -8 -6 -6 -6 -6 -6 -6 -5 -5 -5 --------- Run | Scr Mat Min Exi Min Mat Sto Gar Rec Fac Gar Fac Low Low Zio Pro Fac Ext Total 9929 | 56 524 335 367 376 423 1058 325 312 1204 466 1177 422 774 260 383 682 785 Wait 951 | . 13 . . 66 85 286 23 7 44 177 51 20 17 . . 54 108 Move 7964 | 42 401 321 363 265 282 679 240 262 995 271 1049 369 716 253 346 573 537 Hop 4 | . . . . . . . . . 4 . . . . . . . . Pick Up 88 | 6 19 3 2 8 8 10 4 4 13 . 6 1 2 . . 2 . Fast Attach 83 | 6 3 . . . 3 6 . . 13 . 14 2 3 1 1 13 18 Attach 47 | . 1 1 . . 7 5 2 2 22 1 1 2 2 . . . 1 Detach 13 | . 2 . . . 5 . . . 2 . . 1 . . 3 . . Swap 71 | . 6 . . 8 9 14 8 1 10 . 5 3 2 . 3 . 2 Drop 106 | . 10 1 2 10 1 15 4 . 26 . 15 1 4 1 6 3 7 Fire 392 | 2 51 9 . 19 23 38 36 16 74 17 25 13 28 5 24 . 12 Melee 74 | . . . . . . . . 20 1 . 11 . . . . 37 5 Ram . | . . . . . . . . . . . . . . . . . . Kick . | . . . . . . . . . . . . . . . . . . Crush 1 | . . . . . . 1 . . . . . . . . . . . Escape Stasis 25 | . . . . . . 4 8 . . . . . . . . . 13 Rewire 92 | . . . . . . . . . . . . 10 . . . . 82 Trap 18 | . 18 . . . . . . . . . . . . . . . . Miscellaneous . | . . . . . . . . . . . . . . . . . . Route ------- -11/Scrapyard -10/Materials (discovered 4 exits: [*Mat x2] / *Min x2) -10/Mines (discovered 3 exits: [*Mat x2] / *Exi) -10/Exiles -9/Mines -8/Materials (discovered 2 exits: *Sto x2) -8/Storage (discovered 2 exits: *Fac / Gar) -8/Garrison -8/Recycling -6/Factory -6/Garrison -6/Factory (discovered 2 exits: *Low x2) -6/Lower Caves -6/Lower Caves (discovered 2 exits: *Fac / [*Zio]) -6/Zion -5/Proximity Caves -5/Factory -5/Extension (discovered 1 exit: Cet) History --------- Turn | Location | Event 13 | -11/Scrapyard | Discovered new exit (range 15) 85 | -11/Scrapyard | Entered Materials 315 | -10/Materials | Identified exit to Mines 318 | -10/Materials | Build established: Mutant 603 | -10/Materials | Discovered new exit (range 9) 867 | -10/Materials | Discovered new exit (range 16) 868 | -10/Materials | Entered Mines 943 | -10/Mines | Discovered new exit (range 7) 1008 | -10/Mines | Deemed a non-threat by the Exiles lab entrance 1008 | -10/Mines | Discovered new exit (range 5) 1025 | -10/Mines | Build established: Hauler-Mutant 1051 | -10/Mines | Discovered new exit (range 16) 1052 | -10/Mines | Received a Rocket Launcher from a helpful Derelict 1285 | -10/Mines | Entered Exiles 1315 | -10/Exiles | Met 8R-AWN 1332 | -10/Exiles | Met EX-HEX 1371 | -10/Exiles | Met EX-BIN 1387 | -10/Exiles | Aligned with FarCom system 1389 | -10/Exiles | Given EX-Vault access code 1416 | -10/Exiles | Opened EX-Vault 1426 | -10/Exiles | Found Superbattery 1453 | -10/Exiles | Warned to stay clear of 0b10 Research branches 1486 | -10/Exiles | Met EX-DEC 1505 | -10/Exiles | Learned location of Zion (-6) 1586 | -10/Exiles | Visited The Gauntlet 1711 | -10/Exiles | Discovered new exit (range 14) 1724 | -10/Exiles | Left Exiles lab with Superbattery 1724 | -10/Exiles | Entered Mines 1733 | -9/Mines | Met a Derelict who couldn't figure out how to use a Trap Extractor 1768 | -9/Mines | Met a Derelict bent on vengeance 1795 | -9/Mines | Assembled infested the area 1800 | -9/Mines | Assisted by a Guerilla fighting off Assembled 1838 | -9/Mines | Destroyed 8 combat bots 2000 | -9/Mines | Core integrity fell below 50% 2148 | -9/Mines | Discovered new exit (range 5) 2222 | -9/Mines | Core integrity fell below 20% 2279 | -9/Mines | Entered Materials 2279 | -8/Materials | Evolved 4 slots: Propulsion x1, Utility x3 2743 | -8/Materials | Identified exit to Storage 2928 | -8/Materials | Entered Storage 2998 | -8/Storage | Repaired Imp. EM Pulse Cannon 3050 | -8/Storage | Repaired Cmb. Airjet 3077 | -8/Storage | Repaired Lgt. Treads 3110 | -8/Storage | Repaired Med. Armor Plating? 3144 | -8/Storage | Garrison activated, responded to threat 3608 | -8/Storage | Assisted by bots powering up and referring to "LRC-V3" 3787 | -8/Storage | Met 01-MTF 3834 | -8/Storage | Identified exit to Factory 3919 | -8/Storage | Build established: Commander-Mutant 4321 | -8/Storage | Repaired Med. Armor Plating 4523 | -8/Storage | Build established: Hauler-Mutant 4627 | -8/Storage | Destroyed 01-MTF 4691 | -8/Storage | Identified exit to Garrison 4693 | -8/Storage | Entered Garrison 4693 | -8/Garrison | Accompanied by 1 ally 4850 | -8/Garrison | Triggered checkpoint 4932 | -8/Garrison | Garrison Relay disabled 5062 | -8/Garrison | Triggered checkpoint 5212 | -8/Garrison | Destroyed 7 combat bots 5238 | -8/Garrison | Triggered checkpoint 5241 | -8/Garrison | Discovered new exit (range 10) 5266 | -8/Garrison | Installed Relay Interface Framework 5273 | -8/Garrison | Entered Recycling 5279 | -8/Recycling | Spotter reported a threat 5294 | -8/Recycling | Spotter reported a threat 5354 | -8/Recycling | Spotter reported a threat 5454 | -8/Recycling | Spotter reported a threat 5479 | -8/Recycling | Spotter reported a threat 5480 | -8/Recycling | Spotter reported a threat 5501 | -8/Recycling | Spotter reported a threat 5534 | -8/Recycling | Spotter reported a threat 5534 | -8/Recycling | Spotter reported a threat 5554 | -8/Recycling | Spotter reported a threat 5587 | -8/Recycling | Spotter reported a threat 5587 | -8/Recycling | Spotter reported a threat 5596 | -8/Recycling | Spotter reported a threat 5607 | -8/Recycling | Spotter reported a threat 5639 | -8/Recycling | Spotter reported a threat 5657 | -8/Recycling | Spotter reported a threat 5682 | -8/Recycling | Spotter reported a threat 5684 | -8/Recycling | Spotter reported a threat 5685 | -8/Recycling | Spotter reported a threat 5724 | -8/Recycling | Build established: Commander-Mutant 5812 | -8/Recycling | Discovered new exit (range 10) 5815 | -8/Recycling | Spotter reported a threat 5836 | -8/Recycling | Entered Factory 5836 | -6/Factory | Accompanied by 10 allies 5836 | -6/Factory | Evolved 4 slots: Power x1, Propulsion x1, Utility x2 6186 | -6/Factory | First assault squad dispatched 6369 | -6/Factory | Lost 3 parts (1n2u) 6415 | -6/Factory | Destroyed 11 combat bots 6504 | -6/Factory | Lost 7 parts (1p3n1u2w) 6979 | -6/Factory | Build established: Mutant 7145 | -6/Factory | Identified exit to Garrison 7145 | -6/Factory | Entered Garrison 7170 | -6/Garrison | Triggered checkpoint 7176 | -6/Garrison | Lost 3 parts (2n1u) 7184 | -6/Garrison | Triggered checkpoint 7191 | -6/Garrison | Core integrity fell below 50% 7310 | -6/Garrison | Discovered new exit (range 12) 7523 | -6/Garrison | Entered Factory 8024 | -6/Factory | Identified exit to Lower Caves 8192 | -6/Factory | Fabricated Cmb. Airjet (x2) 8301 | -6/Factory | Entered Lower Caves 8352 | -6/Lower Caves | Learned Factory machine intel 8360 | -6/Lower Caves | Build established: Hacker-Mutant 8483 | -6/Lower Caves | Attracted the attention of an 0b10 outpost 8542 | -6/Lower Caves | Destroyed 7 combat bots 8579 | -6/Lower Caves | Discovered new exit (range 11) 8603 | -6/Lower Caves | Entered another Lower Caves area 8603 | -6/Lower Caves | Accompanied by 2 allies 8621 | -6/Lower Caves | Discovered new exit (range 10) 8635 | -6/Lower Caves | Encountered a Warlord checkpoint 8848 | -6/Lower Caves | Build established: Mutant 9238 | -6/Lower Caves | Discovered new exit (range 6) 9243 | -6/Lower Caves | Entered Zion 9280 | -6/Zion | Given the Hacking Drone Bay 9280 | -6/Zion | Found Prototype Device 9280 | -6/Zion | Identified Hacking Drone Bay 9296 | -6/Zion | Discovered new exit (range 15) 9329 | -6/Zion | Received a hallucinogenic algorithm 9378 | -6/Zion | Learned Factory stockpile data 9408 | -6/Zion | RIF detected upon attempting to enter Zion 9408 | -6/Zion | Attacked by Zionites 9408 | -6/Zion | Spotted LS-O1D(B) 9408 | -6/Zion | Spotted OU-P4X(B) 9448 | -6/Zion | Entered Proximity Caves 9453 | -5/Proximity Caves | Build established: Hacker-Mutant 9723 | -5/Proximity Caves | Attracted the attention of an 0b10 outpost 9760 | -5/Proximity Caves | Discovered new exit (range 15) 9766 | -5/Proximity Caves | Entered Factory 9766 | -5/Factory | Evolved 2 slots: Utility x2 9768 | -5/Factory | Loaded intel: 244 machine locations 9777 | -5/Factory | Found Prototype Processor 9777 | -5/Factory | Identified Exp. Signal Interpreter 9783 | -5/Factory | Lost 6 parts (1p4n1w) 9833 | -5/Factory | Fabricated Cmb. Airjet? 10189 | -5/Factory | Lost 3 parts (1p1n1u) 10202 | -5/Factory | Core integrity fell below 50% 10242 | -5/Factory | System corruption reached 10% 10260 | -5/Factory | Lost 7 parts (3n4u) 10273 | -5/Factory | Spotted B-75 Beast 10297 | -5/Factory | Core integrity fell below 20% 10309 | -5/Factory | Discovered new exit (range 16) 10316 | -5/Factory | Identified exit to Extension 10316 | -5/Factory | Entered Extension 10334 | -5/Extension | Rescued a captive Derelict 10457 | -5/Extension | Rescued a captive Derelict 10458 | -5/Extension | Rescued a captive Derelict 10465 | -5/Extension | Identified exit to Cetus 10503 | -5/Extension | Rescued A7 10609 | -5/Extension | Rescued a captive Derelict 10950 | -5/Extension | Spotted B-75 Beast 10955 | -5/Extension | Allies destroyed B-75 Beast 10976 | -5/Extension | Spotted B-75 Beast 10982 | -5/Extension | Destroyed by B-75 Beast with Magnetic Acceleration Cannon Last Messages --------------- 10968_ Y-64 Sentinel suffers critical hit. 10968_ Y-64 Sentinel destroyed. 10968_ R-10 Processor collects Carbon-fiber Leg. 10969_ Slug penetrates Wall. 10970_ Slug penetrates K-01 Serf. 10970_ K-01 Serf destroyed. 10972_ Y-64 Sentinel misfires. 10973_ HV Slug penetrates B-75 Beast. 10973_ Chain reaction triggered in Imp. Deuterium Engine. 10974_ Slug penetrates B-75 Beast. 10975_ Slug penetrates A7. 10975_ HV Slug penetrates B-75 Beast. 10976_ Slug penetrates B-75 Beast. 10976_ U7-WFS(h) destroyed. 10978_ Slug penetrates B-75 Beast. 10980_ Slug penetrates A7. 10982_ System corrupted: KE Penetrator targeting data glitched. 10982_ B-75 Beast suffers critical hit. 10982_ Destroyed Rnf. Deuterium Engine. 10982_ Slug penetrates QI-OGA(b). Map ----- +----------------------------------------------------+ | # T#?????????????????????????????????????????????? | | # ##?????????????????????????????????????????????? | | # #??????????????????????????????????????????????? | | ###??????????????????????????????????????????????? | | ?????????????????????????????????????????????????? | | ?????????????????????????????????????????????????? | | ?????????????????????????????????????????????????? | | ?????????????????????????????????????????????????? | | ?????????????????????????????????????????????????? | | ?????????????????????????????????????????????????? | | ?????????????????????????????????????????????????? | | ?????????????????????????????????????????????????? | | ?????????????????????????????????????????????????? | | ?????????????????????????????????????????????????? | | ?????????????????????????????????????????????????? | | ?????????????????????????????????????????????????? | | ???????????????????????????????????" ???????????? | | ?????????????????????????????????? ???????????? | | ??????????????????????????????##? Y??????????? | | ?????????????????????????????# ? = = ??????????? | | #############################;# *%!*%/ ??????????? | | %! !?????????? | | *p |=! ! R?????????? | | = = !%* = =% ????????? | | =]]]* === =]%= =/! b ????????? | | ]%]= !%! @ =%!%%= BB????????? | | ##########################;###;;!%! BB????????? | | ??????????????????????????##??????[ ???????????? | | ?????????????????????????????????????????????????? | | ?????????????????????????????????????????????????? | | ?????????????????????????????????????????????????? | | ?????????????????????????????????????????????????? | | ?????????????????????????????????????????????????? | | ?????????????????????????????????????????????????? | | | | | | | | | | | | | | | | | | | | | | | | | | | | | | | | | +----------------------------------------------------+ Best States ------------- Heat Dissipation 59 Coolant Potential 80 Energy Generation 33 Energy Capacity 2380 Matter Stores 550 Matter Capacity 550 Sight Range 22 Terrain Scan Density 10 Jamming Range 12 Armor Coverage 450 Resistance: TH 10 Resistance: EM 20 Power Shielding 90 Propulsion Shielding 33 Evasion (%) 62 Targeting Accuracy 20 Melee Accuracy 8 Recoil Reduction 4 Particle Charging 15 Salvage Targeting 1 Offensive Hacking 12 Defensive Hacking 26 Item Schematics ----------------- Hcp. Storage Unit | -10/Materials | Hacked Cmb. Airjet | -8/Materials | Scanalyzed Imp. EM Pulse Cannon | -8/Materials | Scanalyzed Robot Schematics ------------------ None Fabricated ------------ Cmb. Airjet | x2 | -6/Factory Cmb. Airjet | x2 | -5/Factory Alien Tech Used ----------------- None Achievements -------------- \\IAMDERELICT Challenges ------------ None Game ------ Seed IntegratedChargeLance Manual? 0 Play Time 02:22:45 Cumulative 275.5 hours Start 2021.01.04 @ 14:04:56 End 2021.01.30 @ 14:26:46 Sessions 9 Manual Loads 0 Difficulty Rogue Special Mode None Game No. 109 Rogue 109 Adventurer 0 Explorer 0 Win Type - Total 9 Types 7/0/1/1/0/0/0/0/0 Lore% 61 Gallery% 86 Achievement% 66 Wizard Run 0 Options --------- ASCII 0 Keyboard 0 Movement Numpad Keybinds 0 Fullscreen 1 Font 18/SmallcapsGlow Map View 76x50 Tactical HUD 1 Map Filters NONE Filters NONE Steam 1 RUN: 7f90057a-5d1b-4f03-9167-13b0fb5ee6cb